fUSD/lending_fUSD_20241105
["ID","MTS","AMOUNT","RATE_DAILY","PERIOD"]
[341343146,1730818289554,-745.83,0.00029315,2]
[341343147,1730818289564,-1138.75,0.00029315,2]
[341343148,1730818289574,-500.0,0.00029315,2]
[341343149,1730818289584,-302.09864319,0.00029315,2]
[341343150,1730818289613,-500.0,0.00029315,2]
[341343151,1730818289624,-1546.36,0.00029315,2]
[341343152,1730818289634,-1799.17,0.00029315,2]
[341343153,1730818289643,-500.0,0.00029315,2]
[341343154,1730818289653,-918.0,0.00029315,2]
[341343155,1730818289663,-882.74,0.00029315,2]
[341343156,1730818289672,-500.0,0.00029315,2]
[341343157,1730818289682,-500.0,0.00029315,2]
[341343158,1730818289692,-715.96,0.00029315,2]
[341343159,1730818289702,-1464.77,0.00029315,2]
[341343160,1730818289711,-500.0,0.00029315,2]
[341343161,1730818289721,-500.0,0.00029315,2]
[341343162,1730818289732,-500.0,0.00029315,2]
[341343163,1730818289741,-500.0,0.00029315,2]
[341343164,1730818289751,-821.25,0.00029315,2]
[341343165,1730818289761,-561.05,0.00029315,2]
[341343166,1730818289771,-2488.35,0.00029315,2]
[341343167,1730818289780,-179.04037425,0.00029315,2]
[341343168,1730818289790,-1277.43,0.00029315,2]
[341343169,1730818289799,-789.16,0.00029315,2]
[341343170,1730818289809,-1983.46,0.00029315,2]
[341343171,1730818289818,-500.0,0.00029315,2]
[341343172,1730818289827,-500.0,0.00029315,2]
[341343173,1730818289836,-1319.52,0.00029315,2]
[341343174,1730818289847,-770.21,0.00029315,2]
[341343175,1730818289857,-933.5,0.00029315,2]
[341343176,1730818289868,-1484.81,0.00029315,2]
[341343177,1730818289879,-769.6,0.00029315,2]
[341343178,1730818289889,-893.08,0.00029315,2]
[341343179,1730818289898,-2097.16,0.00029315,2]
[341343180,1730818289908,-706.56,0.00029315,2]
[341343181,1730818289918,-626.22,0.00029315,2]
[341343182,1730818289927,-1129.24,0.00029315,2]
[341343183,1730818289938,-1181.37,0.00029315,2]
[341343184,1730818289948,-500.0,0.00029315,2]
[341343185,1730818289960,-1105.93,0.00029315,2]
[341343186,1730818289972,-1949.19,0.00029315,2]
[341343187,1730818289983,-1772.13,0.00029315,2]
[341343188,1730818289994,-500.0,0.00029315,2]
[341343189,1730818290004,-361.28245543,0.00029315,2]
[341343190,1730818290013,-2148.83,0.00029315,2]
[341343191,1730818290024,-500.0,0.00029315,2]
[341343192,1730818290034,-899.14,0.00029315,2]
[341343193,1730818290044,-500.0,0.00029315,2]
[341343194,1730818290055,-2651.17,0.00029315,2]
[341343195,1730818290065,-500.0,0.00029315,2]
[341343196,1730818290075,-729.55,0.00029315,2]
[341343197,1730818290087,-891.77,0.00029315,2]
[341343198,1730818290112,-500.0,0.00029315,2]
[341343199,1730818290122,-1337.92,0.00029315,2]
[341343200,1730818290133,-500.0,0.00029315,2]
[341343201,1730818290143,-500.0,0.00029315,2]
[341343202,1730818290154,-500.0,0.00029315,2]
[341343203,1730818290165,-500.0,0.00029315,2]
[341343204,1730818290176,-500.0,0.00029315,2]
[341343205,1730818290186,-2000.0,0.00029315,2]
[341343206,1730818290196,-500.0,0.00029315,2]
[341343207,1730818290206,-1628.51,0.00029315,2]
[341343208,1730818290217,-1340.76,0.00029315,2]
[341343209,1730818290227,-500.0,0.00029315,2]
[341343210,1730818290239,-1205.1,0.00029315,2]
[341343211,1730818290249,-671.93,0.00029315,2]
[341343212,1730818290260,-2625.61,0.00029315,2]
[341343213,1730818290270,-500.0,0.00029315,2]
[341343214,1730818290281,-1052.87,0.00029315,2]
[341343215,1730818290291,-862.96,0.00029315,2]
[341343216,1730818290301,-1134.95,0.00029315,2]
[341343217,1730818290312,-500.0,0.00029315,2]
[341343218,1730818290322,-500.0,0.00029315,2]
[341343219,1730818290332,-713.84,0.00029315,2]
[341343220,1730818290343,-500.0,0.00029315,2]
[341343221,1730818290353,-1190.36,0.00029315,2]
[341343222,1730818290364,-561.87,0.00029315,2]
[341343223,1730818290374,-500.0,0.00029315,2]
[341343224,1730818290384,-500.0,0.00029315,2]
[341343225,1730818290395,-500.0,0.00029315,2]
[341343226,1730818290405,-1258.85,0.00029315,2]
[341343227,1730818290634,-708.32,0.00029315,2]
[341343228,1730818290685,-719.74,0.00029315,2]
[341343229,1730818290694,-500.0,0.00029315,2]
[341343230,1730818290704,-530.24,0.00029315,2]
[341343231,1730818290714,-533.96,0.00029315,2]
[341343232,1730818290723,-1233.24,0.00029315,2]
[341343233,1730818290732,-1568.32,0.00029315,2]
[341343234,1730818290742,-1593.99,0.00029315,2]
[341343235,1730818290751,-500.0,0.00029315,2]
[341343236,1730818290761,-500.0,0.00029315,2]
[341343237,1730818290770,-1606.8,0.00029315,2]
[341343238,1730818290780,-1114.96,0.00029315,2]
[341343239,1730818290790,-1019.34,0.00029315,2]
[341343240,1730818290799,-1345.66,0.00029315,2]
[341343241,1730818290810,-573.0,0.00029315,2]
[341343242,1730818290820,-500.0,0.00029315,2]
[341343243,1730818290831,-393.27674169,0.00029315,2]
[341343244,1730818290851,-500.0,0.00029315,2]
[341343245,1730818290861,-1308.07,0.00029315,2]
[341343246,1730818290871,-500.0,0.00029315,2]
[341343247,1730818290880,-500.0,0.00029315,2]
[341343248,1730818290890,-997.78,0.00029315,2]
[341343249,1730818290899,-500.0,0.00029315,2]
[341343250,1730818290908,-510.23,0.00029315,2]
[341343251,1730818290917,-619.16,0.00029315,2]
[341343252,1730818290927,-500.0,0.00029315,2]
[341343253,1730818290936,-654.14,0.00029315,2]
[341343254,1730818290946,-500.0,0.00029315,2]
[341343255,1730818290955,-500.0,0.00029315,2]
[341343256,1730818290965,-500.0,0.00029315,2]
[341343257,1730818290974,-500.0,0.00029315,2]
[341343258,1730818290983,-500.0,0.00029315,2]
[341343259,1730818290993,-500.0,0.00029315,2]
[341343260,1730818291002,-500.0,0.00029315,2]
[341343261,1730818291011,-685.48,0.00029315,2]
[341343262,1730818291021,-859.18,0.00029315,2]
[341343263,1730818291030,-500.0,0.00029315,2]
[341343264,1730818291040,-500.0,0.00029315,2]
[341343265,1730818291050,-804.47,0.00029315,2]
[341343266,1730818291059,-500.0,0.00029315,2]
[341343267,1730818291069,-500.0,0.00029315,2]
[341343268,1730818291079,-1490.72,0.00029315,2]
[341343269,1730818291097,-500.0,0.00029315,2]
[341343270,1730818291108,-2778.32,0.00029315,2]
[341343271,1730818291117,-500.0,0.00029315,2]
[341343272,1730818291126,-313.01404977,0.00029315,2]
[341343273,1730818291136,-500.0,0.00029315,2]
[341343274,1730818291146,-1058.06,0.00029315,2]
[341343275,1730818291155,-991.64,0.00029315,2]
[341343276,1730818291164,-500.0,0.00029315,2]
[341343277,1730818291174,-512.56,0.00029315,2]
[341343278,1730818291184,-1286.83,0.00029315,2]
[341343279,1730818291194,-500.0,0.00029315,2]
[341343280,1730818291204,-500.0,0.00029315,2]
[341343281,1730818291213,-10560.64,0.00029315,2]
[341343282,1730818291222,-500.0,0.00029315,2]
[341343283,1730818291231,-500.0,0.00029315,2]
[341343284,1730818291244,-574.51,0.00029315,2]
[341343285,1730818291254,-882.25,0.00029315,2]
[341343286,1730818291263,-500.0,0.00029315,2]
[341343287,1730818291273,-2024.06,0.00029315,2]
[341343288,1730818291284,-2459.63,0.00029315,2]
[341343289,1730818291294,-500.0,0.00029315,2]
[341343290,1730818291303,-832.24,0.00029315,2]
[341343291,1730818291313,-522.65,0.00029315,2]
[341343292,1730818291322,-539.9,0.00029315,2]
[341343293,1730818291337,-528.68,0.00029315,2]
[341343294,1730818291351,-577.06,0.00029315,2]
[341343295,1730818291361,-500.0,0.00029315,2]
[341343296,1730818291371,-1759.85,0.00029315,2]
[341343297,1730818291381,-500.0,0.00029315,2]
[341343298,1730818291391,-250.0,0.00029315,2]
[341343299,1730818291400,-1143.05,0.00029315,2]
[341343300,1730818291410,-2134.71,0.00029315,2]
[341343301,1730818291419,-500.0,0.00029315,2]
[341343302,1730818291430,-1180.55,0.00029315,2]
[341343303,1730818291439,-500.0,0.00029315,2]
[341343304,1730818291449,-669.82,0.00029315,2]
[341343305,1730818291459,-500.0,0.00029315,2]
[341343306,1730818291468,-500.0,0.00029315,2]
[341343307,1730818291478,-500.0,0.00029315,2]
[341343308,1730818291488,-500.0,0.00029315,2]
[341343309,1730818291498,-2610.73,0.00029315,2]
[341343310,1730818291508,-500.0,0.00029315,2]
[341343311,1730818291517,-500.0,0.00029315,2]
[341343312,1730818291526,-812.75,0.00029315,2]
[341343313,1730818291535,-2008.76,0.00029315,2]
[341343314,1730818291545,-500.0,0.00029315,2]
[341343315,1730818291555,-500.0,0.00029315,2]
[341343316,1730818291564,-500.0,0.00029315,2]
[341343317,1730818291573,-839.69,0.00029315,2]
[341343318,1730818291583,-2029.5,0.00029315,2]
[341343319,1730818291600,-500.0,0.00029315,2]
[341343320,1730818291609,-500.0,0.00029315,2]
[341343321,1730818291619,-828.58,0.00029315,2]
[341343322,1730818291628,-500.0,0.00029315,2]
[341343323,1730818291637,-500.0,0.00029315,2]
[341343324,1730818291647,-228.76791196,0.00029315,2]
[341343325,1730818291656,-500.0,0.00029315,2]
[341343326,1730818291665,-1273.27,0.00029315,2]
[341343327,1730818291675,-500.0,0.00029315,2]
[341343328,1730818291684,-500.0,0.00029315,2]
[341343329,1730818291694,-590.4,0.00029315,2]
[341343330,1730818291703,-1210.7,0.00029315,2]
[341343331,1730818291714,-2727.4,0.00029315,2]
[341343332,1730818291723,-1114.81,0.00029315,2]
[341343333,1730818291733,-12148.46,0.00029315,2]
[341343334,1730818291743,-383.64019966,0.00029315,2]
[341343335,1730818291752,-300.0,0.00029315,2]
[341343336,1730818291761,-2229.83,0.00029315,2]
[341343337,1730818291771,-500.0,0.00029315,2]
[341343338,1730818291781,-511.42,0.00029315,2]
[341343339,1730818291791,-500.0,0.00029315,2]
[341343340,1730818291800,-2291.13,0.00029315,2]
[341343341,1730818291810,-997.05,0.00029315,2]
[341343342,1730818291820,-250.0,0.00029315,2]
[341343343,1730818291829,-800.14,0.00029315,2]
[341343344,1730818291843,-1162.23,0.00029315,2]
[341343345,1730818291853,-500.0,0.00029315,2]
[341343346,1730818291863,-3281.13,0.00029315,2]
[341343347,1730818291872,-618.36,0.00029315,2]
[341343348,1730818291882,-500.0,0.00029315,2]
[341343349,1730818291892,-20453.09,0.00029315,2]
[341343350,1730818291902,-500.0,0.00029315,2]
[341343351,1730818291911,-500.0,0.00029315,2]
[341343352,1730818291921,-839.45,0.00029315,2]
[341343353,1730818291930,-694.1,0.00029315,2]
[341343354,1730818291940,-500.0,0.00029315,2]
[341343355,1730818291949,-1597.24,0.00029315,2]
[341343356,1730818291959,-4040.37,0.00029315,2]
[341343357,1730818291968,-500.0,0.00029315,2]
[341343358,1730818291977,-500.0,0.00029315,2]
[341343359,1730818291987,-8586.16,0.00029315,2]
[341343360,1730818291996,-500.0,0.00029315,2]
[341343361,1730818292005,-500.0,0.00029315,2]
[341343362,1730818292015,-2313.73,0.00029315,2]
[341343363,1730818292024,-1073.79,0.00029315,2]
[341343364,1730818292034,-500.0,0.00029315,2]
[341343365,1730818292043,-558.66,0.00029315,2]
[341343366,1730818292053,-5774.21,0.00029315,2]
[341343367,1730818292062,-500.0,0.00029315,2]
[341343368,1730818292072,-1029.49,0.00029315,2]
[341343369,1730818292082,-673.5,0.00029315,2]
[341343370,1730818292099,-246.14430421,0.00029315,2]
[341343371,1730818292108,-813.15,0.00029315,2]
[341343372,1730818292118,-1674.98,0.00029315,2]
[341343373,1730818292128,-4168.65,0.00029315,2]
[341343374,1730818292139,-500.0,0.00029315,2]
[341343375,1730818292148,-2221.75,0.00029315,2]
[341343376,1730818292159,-500.0,0.00029315,2]
[341343377,1730818292169,-500.0,0.00029315,2]
[341343378,1730818292179,-722.22,0.00029315,2]
[341343379,1730818292189,-623.01,0.00029315,2]
[341343380,1730818292199,-500.0,0.00029315,2]
[341343381,1730818292211,-728.55,0.00029315,2]
[341343382,1730818292223,-200.0,0.00029315,2]
[341343383,1730818292233,-800.76,0.00029315,2]
[341343384,1730818292243,-500.0,0.00029315,2]
[341343385,1730818292253,-500.0,0.00029315,2]
[341343386,1730818292264,-500.0,0.00029315,2]
[341343387,1730818292274,-1037.42,0.00029315,2]
[341343388,1730818292283,-500.0,0.00029315,2]
[341343389,1730818292293,-500.0,0.00029315,2]
[341343390,1730818292303,-500.0,0.00029315,2]
[341343391,1730818292312,-4458.86,0.00029315,2]
[341343392,1730818292322,-6100.5,0.00029315,2]
[341343393,1730818292331,-500.0,0.00029315,2]
[341343394,1730818292346,-1684.86,0.00029315,2]
[341343395,1730818292356,-500.0,0.00029315,2]
[341343396,1730818292367,-746.32,0.00029315,2]
[341343397,1730818292376,-860.55,0.00029315,2]
[341343398,1730818292385,-2800.82,0.00029315,2]
[341343399,1730818292395,-1239.54,0.00029315,2]
[341343400,1730818292405,-500.0,0.00029315,2]
[341343401,1730818292414,-3438.17,0.00029315,2]
[341343402,1730818292424,-500.0,0.00029315,2]
[341343403,1730818292433,-2595.38,0.00029315,2]
[341343404,1730818292442,-500.0,0.00029315,2]
[341343405,1730818292452,-580.29,0.00029315,2]
[341343406,1730818292462,-3998.92,0.00029315,2]
[341343407,1730818292471,-2840.74,0.00029315,2]
[341343408,1730818292481,-500.0,0.00029315,2]
[341343409,1730818292490,-847.64,0.00029315,2]
[341343410,1730818292500,-14923.18,0.00029315,2]
[341343411,1730818292510,-1420.05,0.00029315,2]
[341343412,1730818292519,-500.0,0.00029315,2]
[341343413,1730818292528,-500.0,0.00029315,2]
[341343414,1730818292538,-500.0,0.00029315,2]
[341343415,1730818292547,-7967.31,0.00029315,2]
[341343416,1730818292557,-500.0,0.00029315,2]
[341343417,1730818292566,-500.0,0.00029315,2]
[341343418,1730818292575,-2786.33,0.00029315,2]
[341343419,1730818292584,-500.0,0.00029315,2]
[341343420,1730818292596,-500.0,0.00029315,2]
[341343421,1730818292606,-500.0,0.00029315,2]
[341343422,1730818292616,-500.0,0.00029315,2]
[341343423,1730818292624,-500.0,0.00029315,2]
[341343424,1730818292633,-500.0,0.00029315,2]
[341343425,1730818292643,-2634.78,0.00029315,2]
[341343426,1730818292653,-500.0,0.00029315,2]
[341343427,1730818292663,-500.0,0.00029315,2]
[341343428,1730818292674,-4963.13,0.00029315,2]
[341343429,1730818292684,-1373.68,0.00029315,2]
[341343430,1730818292694,-3175.23,0.00029315,2]
[341343431,1730818292703,-1485.58,0.00029315,2]
[341343432,1730818292714,-500.0,0.00029315,2]
[341343433,1730818292725,-500.0,0.00029315,2]
[341343434,1730818292735,-8714.97,0.00029315,2]
[341343435,1730818292746,-1668.5,0.00029315,2]
[341343436,1730818292756,-500.0,0.00029315,2]
[341343437,1730818292766,-580.17,0.00029315,2]
[341343438,1730818292777,-2394.75,0.00029315,2]
[341343439,1730818292788,-500.0,0.00029315,2]
[341343440,1730818292798,-500.0,0.00029315,2]
[341343441,1730818292808,-870.25,0.00029315,2]
[341343442,1730818292818,-3537.3,0.00029315,2]
[341343443,1730818292828,-500.0,0.00029315,2]
[341343444,1730818292839,-812.1,0.00029315,2]
[341343445,1730818292849,-337.99198738,0.00029315,2]
[341343446,1730818292858,-500.0,0.00029315,2]
[341343447,1730818292867,-519.6,0.00029315,2]
[341343448,1730818292876,-641.36,0.00029315,2]
[341343449,1730818292885,-1061.46,0.00029315,2]
[341343450,1730818292895,-500.0,0.00029315,2]
[341343451,1730818292904,-5273.27,0.00029315,2]
[341343452,1730818292914,-500.0,0.00029315,2]
[341343453,1730818292923,-2904.78,0.00029315,2]
[341343454,1730818292933,-500.0,0.00029315,2]
[341343455,1730818292942,-22457.59,0.00029315,2]
[341343456,1730818292952,-500.0,0.00029315,2]
[341343457,1730818292962,-500.0,0.00029315,2]
[341343458,1730818292974,-543.17,0.00029315,2]
[341343459,1730818292985,-3230.76,0.00029315,2]
[341343460,1730818292996,-621.32,0.00029315,2]
[341343461,1730818293005,-851.69,0.00029315,2]
[341343462,1730818293015,-862.17,0.00029315,2]
[341343463,1730818293024,-500.0,0.00029315,2]
[341343464,1730818293101,-2720.75,0.00029315,2]
[341343465,1730818293111,-517.2,0.00029315,2]
[341343466,1730818293121,-638.18,0.00029315,2]
[341343467,1730818293131,-579.18774127,0.00029315,2]
[341343468,1730818293140,-947.11,0.00029315,2]
[341343469,1730818293150,-3625.83,0.00029315,2]
[341343470,1730818293160,-2072.98,0.00029315,2]
[341343471,1730818293170,-543.76835622,0.00029315,2]
[341343472,1730818293180,-500.0,0.00029315,2]
[341343473,1730818293190,-2681.47,0.00029315,2]
[341343474,1730818293200,-500.0,0.00029315,2]
[341343475,1730818293210,-500.0,0.00029315,2]
[341343476,1730818293220,-1864.35,0.00029315,2]
[341343477,1730818293230,-738.0,0.00029315,2]
[341343478,1730818293241,-500.0,0.00029315,2]
[341343479,1730818293254,-1021.21,0.00029315,2]
[341343480,1730818293264,-879.91,0.00029315,2]
[341343481,1730818293275,-500.0,0.00029315,2]
[341343482,1730818293285,-500.0,0.00029315,2]
[341343483,1730818293295,-940.79,0.00029315,2]
[341343484,1730818293305,-1411.05,0.00029315,2]
[341343485,1730818293315,-1999.999999,0.000295,2]
[341343486,1730818293325,-8576.0,0.00029509,2]
[341343487,1730818293335,-959.37,0.00029589,2]
[341343488,1730818293348,-642.42,0.00029589,2]
[341343489,1730818293358,-172.18438805,0.00029589,2]
[341343490,1730818293367,-500.0,0.00029589,2]
[341343491,1730818293378,-500.0,0.00029589,2]
[341343492,1730818293388,-2202.5,0.00029589,2]
[341343493,1730818293397,-500.0,0.00029589,2]
[341343494,1730818293407,-500.0,0.00029589,2]
[341343495,1730818293417,-1276.84,0.00029589,2]
[341343496,1730818293426,-500.0,0.00029589,2]
[341343497,1730818293435,-500.0,0.00029589,2]
[341343498,1730818293445,-500.0,0.00029589,2]
[341343499,1730818293454,-500.0,0.00029589,2]
[341343500,1730818293464,-500.0,0.00029589,2]
[341343501,1730818293473,-524.62,0.00029589,2]
[341343502,1730818293483,-500.0,0.00029589,2]
[341343503,1730818293492,-500.0,0.00029589,2]
[341343504,1730818293502,-500.0,0.00029589,2]
[341343505,1730818293511,-500.0,0.00029589,2]
[341343506,1730818293521,-1325.09,0.00029589,2]
[341343507,1730818293530,-652.16,0.00029589,2]
[341343508,1730818293540,-500.0,0.00029589,2]
[341343509,1730818293549,-500.0,0.00029589,2]
[341343510,1730818293559,-1213.8,0.00029589,2]
[341343511,1730818293568,-543.65,0.00029589,2]
[341343512,1730818293578,-500.0,0.00029589,2]
[341343513,1730818293589,-710.18,0.00029589,2]
[341343514,1730818293599,-596.5,0.00029589,2]
[341343515,1730818293609,-500.0,0.00029589,2]
[341343516,1730818293618,-500.0,0.00029589,2]
[341343517,1730818293628,-519.75349145,0.00029589,2]
[341343518,1730818293638,-500.0,0.00029589,2]
[341343519,1730818293648,-500.0,0.00029589,2]
[341343520,1730818293658,-500.0,0.00029589,2]
[341343521,1730818293667,-1031.26,0.00029589,2]
[341343522,1730818293676,-160.4432116,0.00029589,2]
[341343523,1730818293686,-1810.02,0.00029589,2]
[341343524,1730818293695,-500.0,0.00029589,2]
[341343525,1730818293704,-500.0,0.00029589,2]
[341343526,1730818293714,-1006.45,0.00029589,2]
[341343527,1730818293723,-1532.81,0.00029589,2]
[341343528,1730818293732,-500.0,0.00029589,2]
[341343529,1730818293742,-500.0,0.00029589,2]
[341343530,1730818293751,-1172.46,0.00029589,2]
[341343531,1730818293760,-950.66,0.00029589,2]
[341343532,1730818293769,-566.27,0.00029589,2]
[341343533,1730818293778,-1150.28,0.00029589,2]
[341343534,1730818293788,-500.0,0.00029589,2]
[341343535,1730818293798,-1053.05,0.00029589,2]
[341343536,1730818293808,-1385.21,0.00029589,2]
[341343537,1730818293818,-2449.39,0.00029589,2]
[341343538,1730818293827,-500.0,0.00029589,2]
[341343539,1730818293839,-551.76,0.00029589,2]
[341343540,1730818293849,-1152.78,0.00029589,2]
[341343541,1730818293858,-505.75,0.00029589,2]
[341343542,1730818293868,-644.59083518,0.00029589,2]
[341343543,1730818293877,-1169.16,0.00029589,2]
[341343544,1730818293886,-500.0,0.00029589,2]
[341343545,1730818293896,-500.0,0.00029589,2]
[341343546,1730818293905,-1981.15,0.00029589,2]
[341343547,1730818293915,-1122.88,0.00029589,2]
[341343548,1730818293924,-667.7,0.00029589,2]
[341343549,1730818293934,-765.3,0.00029589,2]
[341343550,1730818293943,-1179.4,0.00029589,2]
[341343551,1730818293953,-745.83,0.00029589,2]
[341343552,1730818293963,-1138.75,0.00029589,2]
[341343553,1730818293972,-500.0,0.00029589,2]
[341343554,1730818293981,-500.0,0.00029589,2]
[341343555,1730818293990,-1546.36,0.00029589,2]
[341343556,1730818294000,-1799.17,0.00029589,2]
[341343557,1730818294009,-500.0,0.00029589,2]
[341343558,1730818294018,-918.0,0.00029589,2]
[341343559,1730818294027,-882.74,0.00029589,2]
[341343560,1730818294036,-500.0,0.00029589,2]
[341343561,1730818294046,-500.0,0.00029589,2]
[341343562,1730818294055,-715.96,0.00029589,2]
[341343563,1730818294064,-1464.77,0.00029589,2]
[341343564,1730818294073,-500.0,0.00029589,2]
[341343565,1730818294083,-500.0,0.00029589,2]
[341343566,1730818294097,-500.0,0.00029589,2]
[341343567,1730818294107,-500.0,0.00029589,2]
[341343568,1730818294117,-821.25,0.00029589,2]
[341343569,1730818294128,-561.05,0.00029589,2]
[341343570,1730818294138,-2488.35,0.00029589,2]
[341343571,1730818294148,-1277.43,0.00029589,2]
[341343572,1730818294158,-789.16,0.00029589,2]
[341343573,1730818294168,-1983.46,0.00029589,2]
[341343574,1730818294179,-500.0,0.00029589,2]
[341343575,1730818294189,-500.0,0.00029589,2]
[341343576,1730818294199,-1319.52,0.00029589,2]
[341343577,1730818294208,-770.21,0.00029589,2]
[341343578,1730818294219,-933.5,0.00029589,2]
[341343579,1730818294229,-1484.81,0.00029589,2]
[341343580,1730818294240,-893.08,0.00029589,2]
[341343581,1730818294250,-769.6,0.00029589,2]
[341343582,1730818294260,-2097.16,0.00029589,2]
[341343583,1730818294273,-706.56,0.00029589,2]
[341343584,1730818294282,-626.22,0.00029589,2]
[341343585,1730818294292,-1129.24,0.00029589,2]
[341343586,1730818294302,-1181.37,0.00029589,2]
[341343587,1730818294313,-500.0,0.00029589,2]
[341343588,1730818294324,-1105.93,0.00029589,2]
[341343589,1730818294334,-1949.19,0.00029589,2]
[341343590,1730818294348,-1772.13,0.00029589,2]
[341343591,1730818294358,-500.0,0.00029589,2]
[341343592,1730818294369,-2148.83,0.00029589,2]
[341343593,1730818294379,-500.0,0.00029589,2]
[341343594,1730818294389,-899.14,0.00029589,2]
[341343595,1730818294399,-500.0,0.00029589,2]
[341343596,1730818294409,-2651.17,0.00029589,2]
[341343597,1730818294419,-500.0,0.00029589,2]
[341343598,1730818294429,-729.55,0.00029589,2]
[341343599,1730818294439,-891.77,0.00029589,2]
[341343600,1730818294449,-468.13882248,0.00029589,2]
[341343601,1730818294459,-1337.92,0.00029589,2]
[341343602,1730818294471,-500.0,0.00029589,2]
[341343603,1730818294481,-500.0,0.00029589,2]
[341343604,1730818294492,-500.0,0.00029589,2]
[341343605,1730818294503,-500.0,0.00029589,2]
[341343606,1730818294513,-500.0,0.00029589,2]
[341343607,1730818294523,-2000.0,0.00029589,2]
[341343608,1730818294533,-500.0,0.00029589,2]
[341343609,1730818294543,-1628.51,0.00029589,2]
[341343610,1730818294554,-1340.76,0.00029589,2]
[341343611,1730818294564,-500.0,0.00029589,2]
[341343612,1730818294574,-1205.1,0.00029589,2]
[341343613,1730818294584,-671.93,0.00029589,2]
[341343614,1730818294596,-2625.61,0.00029589,2]
[341343615,1730818294605,-500.0,0.00029589,2]
[341343616,1730818294615,-1052.87,0.00029589,2]
[341343617,1730818294625,-862.96,0.00029589,2]
[341343618,1730818294634,-1134.95,0.00029589,2]
[341343619,1730818294644,-500.0,0.00029589,2]
[341343620,1730818294654,-500.0,0.00029589,2]
[341343621,1730818294664,-713.84,0.00029589,2]
[341343622,1730818294673,-500.0,0.00029589,2]
[341343623,1730818294683,-1190.36,0.00029589,2]
[341343624,1730818294692,-561.87,0.00029589,2]
[341343625,1730818294701,-500.0,0.00029589,2]
[341343626,1730818294711,-500.0,0.00029589,2]
[341343627,1730818294720,-500.0,0.00029589,2]
[341343628,1730818294730,-1258.85,0.00029589,2]
[341343629,1730818294739,-708.32,0.00029589,2]
[341343630,1730818294749,-719.74,0.00029589,2]
[341343631,1730818294758,-349.73179972,0.00029589,2]
[341343632,1730818294768,-530.24,0.00029589,2]
[341343633,1730818294778,-533.96,0.00029589,2]
[341343634,1730818294788,-1233.24,0.00029589,2]
[341343635,1730818294797,-1568.32,0.00029589,2]
[341343636,1730818294807,-1593.99,0.00029589,2]
[341343637,1730818294817,-500.0,0.00029589,2]
[341343638,1730818294826,-500.0,0.00029589,2]
[341343639,1730818294836,-1606.8,0.00029589,2]
[341343640,1730818294850,-1114.96,0.00029589,2]
[341343641,1730818294860,-1019.34,0.00029589,2]
[341343642,1730818294870,-1345.66,0.00029589,2]
[341343643,1730818294879,-573.0,0.00029589,2]
[341343644,1730818294889,-500.0,0.00029589,2]
[341343645,1730818294899,-500.0,0.00029589,2]